Cogmind - Beta 9.4 @@@ ROGUE MODE // 2020.02.19 @ 17:43:57 Player: Dusanh Result: Destroyed by as-76569 with Assembled Rifle Performance ------------- Evolutions (0) 0 Regions Visited (0) 0 Robots Destroyed (9) 45 Value Destroyed (0) 0 Prototype IDs (0) 0 Alien Tech Used (0) 0 Bonus (0) 0 TOTAL SCORE: 45 Bonus ------- None Cogmind --------- Core Integrity 0/250 Matter 141/300 Energy 100/100 System Corruption 9% Temperature Cool (0) Movement Core (100) Ox1 Location -11/Scrapyard Parts ------- > --- POWER (1) -------- (None) > --- PROPULSION (2) --- (None) > --- UTILITY (2) ------ Small Storage Unit > --- WEAPON (2) ------- (None) > --- INVENTORY (6) ---- Ion Engine Peak State ------------ > --- POWER ------------ Ion Engine > --- PROPULSION ------- Light Treads Wheel > --- UTILITY ---------- Small Storage Unit > --- WEAPON ----------- Assault Rifle Assault Rifle > --- INVENTORY -------- (None) [Rating: 6] Favorites ----------- Power Ion Engine Engine Ion Engine Propulsion Light Treads Treads Light Treads Wheel Wheel Utility Small Storage Unit Storage Small Storage Unit Weapon Assault Rifle Ballistic Gun Assault Rifle Build | -11 ------- Run | Scr Slots Evolved . | . Power . | . Propulsion . | . Utility . | . Weapon . | . Parts Attached 12 | 12 Power 2 | 2 Engine 2 | 2 Core . | . Reactor . | . Propulsion 5 | 5 Treads 3 | 3 Leg . | . Wheel 2 | 2 Hover . | . Flight . | . Utility 1 | 1 Device . | . Storage 1 | 1 Processor . | . Hackware . | . Protection . | . Artifact . | . Weapon 4 | 4 Energy Gun . | . Energy Cannon . | . Ballistic Gun 4 | 4 Ballistic Cannon . | . Launcher . | . Special Weapon . | . Impact Weapon . | . Slashing Weapon . | . Piercing Weapon . | . Special Melee Weapon . | . Unidentified Prototypes . | . Parts Lost 8 | 8 Power 1 | 1 Propulsion 4 | 4 Utility . | . Weapon 3 | 3 Highest Loss Streak 5 | 5 Average Slot Usage (%) . | . Naked Turns . | . Heaviest Build 13 | 13 Greatest Support 20 | 20 Greatest Overweight (x) 4 | 4 Average Overweight (x) . | . Largest Inventory Capacity 6 | 6 Average Capacity 5 | 5 Most Carried 4 | 4 Average Carried 3 | 3 Final Capacity 6 | 6 Final Carried 1 | 1 Class Distribution -------------------- None Dominant Class ---------------- None Resources | -11 ----------- Run | Scr Matter Collected 373 | 373 Remotely . | . Salvage Created 126 | 126 Parts . | . Haulers Intercepted . | . Recyclers Shooed . | . Parts Field Recycled . | . Retrieved Matter . | . Parts Self-Destructed . | . Prevented . | . Kills | -11 ------- Run | Scr Combat Hostiles Destroyed 9 | 9 Guns 9 | 9 Classes Destroyed 1 | 1 Assembled 9 | 9 Best Kill Streak 2 | 2 Combat Bots Only 2 | 2 Max Kills in Single Turn 1 | 1 Gunslinging . | . Exploded . | . Melee . | . Uniques/NPCs Destroyed . | . Combat | -11 -------- Run | Scr Damage Taken 1082 | 1082 Core 252 | 252 Absorbed by Shields . | . Core Remaining (%) . | . Volleys Fired 46 | 46 Largest 2 | 2 Hottest 40 | 40 Shots Fired 88 | 88 Gun 88 | 88 Cannon . | . Launcher . | . Special . | . Kinetic 88 | 88 Thermal . | . Explosive . | . Electromagnetic . | . Robot Hit Streak 4 | 4 Robot Miss Streak 5 | 5 Penetration Max . | . Secondary Targets 1 | 1 Max Gunslinging Chain 1 | 1 Shots Hit Robots 47 | 47 Core Hits 19 | 19 Critical Hits 1 | 1 Critical Kills . | . Critical Parts Destroyed 1 | 1 Melee Attacks . | . Impact . | . Slashing . | . Piercing . | . Sneak Attacks . | . Combat Hostiles . | . Follow-up Attacks . | . Damage Inflicted 525 | 525 Guns 525 | 525 Cannons . | . Explosions . | . Melee . | . Ramming . | . Kinetic 525 | 525 Thermal . | . Explosive . | . Electromagnetic . | . Impact . | . Slashing . | . Piercing . | . Highest Corruption 9 | 9 Average Corruption 8 | 8 Corruption Purged . | . Effects 13 | 13 Message Errors 3 | 3 Matter Fused 2 | 2 Heat Flow Errors 2 | 2 Energy Discharges 1 | 1 Targeting Errors 4 | 4 Weapon Failures 1 | 1 Overload Shots . | . Overflow Damage . | . Projectiles . | . Explosions . | . Melee . | . Knockbacks . | . Impact . | . Kinetic . | . Secondary . | . Self-Inflicted Damage . | . Shots . | . Rammed . | . Targets Rammed . | . Kicked . | . Crushed . | . Highest Temperature 220 | 220 Average Temperature 81 | 81 Received Heat Transfer 100 | 100 Siege Activations . | . Robots Corrupted . | . Combat Hostiles . | . Parts Fried . | . Impact Corruptions . | . Robots Melted . | . Combat Hostiles . | . Parts Melted . | . Heat Transferred . | . Parts Sabotaged . | . Parts Stolen . | . Parts Stripped . | . Power Chain Reactions . | . Missiles Intercepted . | . Alert | -11 ------- Run | Scr Peak Influence 15 | 15 Average Influence . | . Maximum Alert Level . | . Low Security (%) 100 | 100 Level 1 . | . Level 2 . | . Level 3 . | . Level 4 . | . Level 5 . | . High Security . | . Max Security . | . Squads Dispatched . | . Investigation . | . Extermination . | . Reinforcement . | . Assault . | . Garrison . | . Intercept . | . Construction Impeded . | . Haulers Reinforced . | . Stealth | -11 --------- Run | Scr Distress Signals . | . Communications Jammed . | . Distress Signals . | . Times Spotted 13 | 13 Peak Tracking Total 3 | 3 Tactical Retreats . | . Traps | -11 ------- Run | Scr Traps Triggered . | . Indirectly . | . Trap Hack Attempts . | . Triggered . | . Disarmed . | . Reprogrammed . | . Reused . | . Traps Extracted . | . Installed . | . Triggered . | . Machines | -11 ---------- Run | Scr Machines Disabled . | . Max in Single Turn . | . Machines Sabotaged . | . Garrisons Compromised . | . Overloaded Fab Kills . | . Fab Network Shutdowns . | . Hacking | -11 --------- Run | Scr Machines Accessed . | . Terminals . | . Fabricators . | . Repair Stations . | . Recycling Units . | . Scanalyzers . | . Garrison Access . | . Total Hacks . | . Successful . | . Failed . | . Catastrophic . | . Database Lockouts . | . Manual . | . Terminals . | . Fabricators . | . Repair Stations . | . Recycling Units . | . Scanalyzers . | . Garrison Access . | . Terminal Hacks . | . Fabricator Hacks . | . Repair Station Hacks . | . Recycling Unit Hacks . | . Scanalyzer . | . Garrison Access Hacks . | . Unauthorized Hacks . | . Terminals . | . Fabricators . | . Repair Stations . | . Recycling Units . | . Scanalyzers . | . Garrison Access . | . Data Cores Recovered . | . Used . | . Hacking Detections . | . Full Trace Events . | . Feedback Events . | . Feedback Blocked . | . Robot Schematics Acquired . | . Robots Built . | . Matter . | . Time . | . Total Robot Build Rating . | . Part Schematics Acquired . | . Parts Built . | . Matter . | . Time . | . Total Part Build Rating . | . Parts Repaired . | . Time . | . Parts Recycled . | . Recycled Matter . | . Retrieved Matter . | . Retrieved Components . | . Parts Scanalyzed . | . Part Schematics Acquired . | . Parts Damaged . | . Bothacking | -11 ------------ Run | Scr Used RIF Installer . | . Robots Hacked . | . Non-combat . | . Combat . | . Robot Hacks Applied . | . Relay Couplers Released . | . Robots Rewired . | . Allies Hacked . | . Hacks Repelled . | . Allies | -11 -------- Run | Scr Total Allies . | . Largest Group . | . Highest-Rated Group . | . Highest-Rated Ally . | . Total Orders . | . Ally Attacks . | . Total Damage . | . Kills . | . Allies Corrupted . | . Allies Melted . | . Intel | -11 ------- Run | Scr Robot Analysis Total . | . Derelict Logs Recovered . | . Drone Launches . | . Drone Recoveries . | . Exploration | -11 ------------- Run | Scr Turns Passed 3820 | 3820 Spaces Moved 1084 | 1084 Core 18 | 18 Treads 1028 | 1028 Legs . | . Wheels 38 | 38 Hover . | . Flight . | . Fastest Speed 50 | 50 Average Speed 157 | 157 Slowest Speed 250 | 250 Overloaded Moves . | . Propulsion Burnouts . | . Robots Hopped . | . Cave-ins Triggered . | . Exploration Rate (%) 107 | 107 Regions Visited . Branch Regions . Pre-discovered Areas . | . Known Exits Taken . | . Unknown Exits Taken . | . Scrap Searched . | . Spaces Dug . | . Terrain Destroyed . | . Melee . | . Projectile . | . AOE . | . Actions | -11 --------- Run | Scr Total 3105 | 3105 Wait 1958 | 1958 Move 1084 | 1084 Hop . | . Pick Up 5 | 5 Fast Attach 7 | 7 Attach 4 | 4 Detach . | . Swap 1 | 1 Drop . | . Fire 46 | 46 Melee . | . Ram . | . Kick . | . Crush . | . Escape Stasis . | . Rewire . | . Trap . | . Miscellaneous . | . Route ------- -11/Scrapyard (discovered 1 exit: [*Mat]) History --------- Turn | Location | Event 35 | -11/Scrapyard | Discovered new exit (range 16) 3376 | -11/Scrapyard | Assembled infested the area 3805 | -11/Scrapyard | Core integrity fell below 50% 3818 | -11/Scrapyard | Core integrity fell below 20% 3821 | -11/Scrapyard | Destroyed by as-76569 with Assembled Rifle Last Messages --------------- 03738_ System corrupted: Assault Rifle targeting data glitched. 03738_ as-91078 destroyed. 03740_ System corrupted: Heat flow error (+168). 03744_ Acquired 13 matter. 03749_ System corrupted: Assault Rifle targeting data glitched. 03757_ System corrupted: Matter fused (-5). 03767_ as-20578 destroyed. 03767_ Switching to secondary target: as-01437. 03772_ System corrupted: Matter fused (-5). 03772_ Ion Engine destroyed. 03774_ Assault Rifle destroyed. 03776_ as-01437 destroyed. 03781_ Acquired 19 matter. 03784_ Acquired 12 matter. 03786_ Acquired 11 matter. 03788_ 8IRKVLD9 ,5QR/04YWDTNXE21JNWVXWA4DW 03802_ Lgt. Treads destroyed. 03806_ Assault Rifle destroyed. 03813_ DC&F0DWL6N9 #KVVBFVC 03815_ Com. Wheel destroyed. Map ----- +----------------------------------------------------+ | # ###########??????????????????????????????????? | | # # #??????????????????????????????????? | | # # #??????????????????????????????????? | | # #??????????????????????????????????? | | ### # #??????????????????????????????????? | | ### # #??????????????????????????????????? | | # #??????????????????????????????????? | | #??????????????????????????????????? | | ## ## #????????????????????????########??? | | ## ############???????????????????????## ##?? | | #?????????????????????????????# ### | | #?????????????????????????????# # | | #?????????????????????????????# # | | #???##########????????????????# # | | #???# #????????????????# # | | #???# #????????????????# # | | #???# ########?????????# # | | #???# # #?????????# # | | ############# # #?????????##### #### | | ??# # # #????????????# | | ??# # # #??########### ###### | | ??# # # #??# ## # | | ??# # # #??# ## | | ######## ######### ###### ###### ## # | | a a # ## ###### | | a @ # ## #????? | | ############################# # ## #????# | | # #???????????????# ## #????# | | # #???????????????# # ## #????# | | # #???????????????# # ## #????# | | # #????????????#### ########### #????# | | # ##########???# #??????# #????# | | # # #???# #?????## ##???# | | # # #???# ####### ##### | | ######### ### = ##### | | = | | ####### ##### | | ######### ### ##### < #?????######???? | | ??# # #???# #??????????????? | | ??# # #???##########??????????????? | | ??# #### ####???????????????????????????? | | ?# #??# #??????????###############?????? | | ## #??# #??????????# #?????? | | ## #??# ############ #?????? | | ## #??# # #?????? | | ## #??# # #?????? | | ############??# #?????? | | ??????????????# # #?????? | | ???????????????# ################?????? | | ???????????????# # #?????????????? | +----------------------------------------------------+ Best States ------------- Heat Dissipation 25 Energy Generation 10 Energy Capacity 250 Matter Stores 286 Matter Capacity 300 Sight Range 16 Terrain Scan Density 10 Evasion (%) 40 Recoil Reduction 1 Item Schematics ----------------- None Robot Schematics ------------------ None Fabricated ------------ Nothing Alien Tech Used ----------------- None Achievements -------------- Curiosity Killed The Cat Challenges ------------ None Game ------ Seed CompositeBoreRedistributor Manual? 0 Play Time 00:12:50 Cumulative 25.4 hours Start 2020.02.19 @ 17:37:28 End 2020.02.19 @ 17:43:57 Sessions 0 Manual Loads 0 Difficulty Rogue Special Mode None Game No. 5 Rogue 5 Adventurer 0 Explorer 0 Win Type - Total 1 Types 0/0/0/0/0/1/0 Lore% 35 Gallery% 34 Achievement% 59 Wizard Run 0 Options --------- ASCII 0 Keyboard 0 Movement Numpad Keybinds 0 Fullscreen 1 Font 18/SmallcapsGlow Map View 76x50 Tactical HUD 1 Map Filters NONE Filters NONE Steam 1 RUN: 141c5b7c-c396-440b-8f39-d27846e53628